bitfinex-derivatives/quotes_BTCF0:USTF0_20241021
["timestamp","ask_amount","ask_price","bid_price","bid_amount"]
[1729501280193,0.073182,68346.0,68345.0,0.04379921]
[1729501280691,0.073184,68344.0,68342.0,0.13158742]
[1729501281006,0.073184,68345.0,68343.0,0.13158642]
[1729501281498,0.073184,68344.0,68343.0,0.13158642]
[1729501281802,0.073184,68344.0,68343.0,0.05840142]
[1729501281990,0.24,68348.0,68342.0,0.05840142]
[1729501282197,0.0381438,68347.0,68341.0,0.3608]
[1729501282396,0.073187,68342.0,68341.0,0.3608]
[1729501282702,0.1113308,68342.0,68341.0,0.3608]
[1729501284502,0.1123308,68342.0,68341.0,0.3618]
[1729501284893,0.1113308,68342.0,68341.0,0.3648]
[1729501285295,0.1113308,68342.0,68341.0,0.004]
[1729501286602,0.1113308,68342.0,68341.0,0.003]
[1729501286794,0.073187,68342.0,68341.0,0.004]
[1729501287001,0.11110148,68342.0,68341.0,0.004]
[1729501287201,0.03791448,68342.0,68341.0,0.002]
[1729501287402,0.11110148,68342.0,68341.0,0.003]
[1729501287903,0.11110148,68342.0,68341.0,0.002]
[1729501288104,0.11110148,68342.0,68341.0,0.003]
[1729501289210,0.46644,68351.0,68341.0,0.003]
[1729501289211,0.073182,68347.0,68341.0,0.003]
[1729501289396,0.073182,68347.0,68344.0,0.41922262]
[1729501289601,0.073182,68347.0,68345.0,0.1143]
[1729501289905,0.073182,68347.0,68346.0,0.073182]
[1729501290708,0.074182,68347.0,68346.0,0.073182]
[1729501291405,0.074182,68347.0,68346.0,0.074182]
[1729501292012,0.075182,68347.0,68346.0,0.080182]
[1729501293097,0.075182,68347.0,68346.0,0.007]
[1729501295309,0.002,68347.0,68346.0,0.080182]
[1729501295815,0.002,68347.0,68346.0,0.13860462]
[1729501297104,0.002,68347.0,68346.0,0.080182]
[1729501297306,0.04095865,68347.0,68346.0,0.073182]
[1729501297819,0.08588043,68347.0,68346.0,0.073182]
[1729501301221,0.08372948,68347.0,68346.0,0.073182]
[1729501302416,0.06352948,68347.0,68346.0,0.073182]
[1729501304212,0.07318,68349.0,68348.0,0.07318]
[1729501305613,0.07318,68349.0,68348.0,0.07618]
[1729501305817,0.07318,68349.0,68348.0,0.07718]
[1729501310608,0.4767,68360.0,68348.0,0.07718]
[1729501310609,0.4767,68360.0,68348.0,0.004]
[1729501310804,0.073176,68352.0,68351.0,0.073177]
[1729501311916,0.073176,68352.0,68351.0,0.11702161]
[1729501312226,0.073173,68355.0,68351.0,0.04384461]
[1729501312519,0.48486,68360.0,68353.0,0.04384461]
[1729501312714,0.073169,68358.0,68357.0,0.07317]
[1729501313921,0.073161,68366.0,68365.0,0.073162]
[1729501314120,0.073161,68366.0,68365.0,0.433962]
[1729501314515,0.2307,68374.0,68365.0,0.3608]
[1729501314715,0.073159,68368.0,68366.0,0.07316]
[1729501315317,0.2307,68374.0,68365.0,0.3608]
[1729501315515,0.073157,68370.0,68369.0,0.073157]
[1729501315715,0.2307,68374.0,68367.0,0.04383783]
[1729501316020,0.07316,68367.0,68366.0,0.073161]
[1729501316324,0.07316,68367.0,68366.0,0.074161]
[1729501317028,0.2307,68374.0,68365.0,0.04383783]
[1729501317321,0.2307,68374.0,68369.0,0.433957]
[1729501317322,0.073155,68372.0,68369.0,0.433957]
[1729501317526,0.073156,68371.0,68369.0,0.433957]
[1729501317717,0.073156,68371.0,68369.0,0.073157]
[1729501318315,0.073156,68371.0,68367.0,0.3608]
[1729501318619,0.073156,68371.0,68370.0,0.073157]
[1729501319220,0.073156,68371.0,68361.0,0.38740847]
[1729501319221,0.15487643,68371.0,68361.0,0.22633928]
[1729501319422,0.08172043,68370.0,68369.0,0.073158]
[1729501319826,0.15487743,68370.0,68369.0,0.073158]
[1729501320722,0.08172043,68370.0,68367.0,0.001]
[1729501320918,0.016,68371.0,68367.0,0.001]
[1729501320919,0.073159,68368.0,68367.0,0.001]
[1729501321124,0.073172,68356.0,68355.0,0.073173]
[1729501321321,0.15489243,68356.0,68355.0,0.073173]
[1729501321727,0.08172043,68356.0,68355.0,0.073173]
[1729501323236,0.08572043,68356.0,68355.0,0.073173]
[1729501323435,0.08475222,68356.0,68355.0,0.073173]
[1729501324528,0.13723126,68356.0,68353.0,0.27923719]
[1729501324828,0.26915311,68355.0,68353.0,0.27923719]
[1729501325034,0.15392622,68354.0,68353.0,0.27923719]
[1729501325234,0.51472622,68354.0,68337.0,0.3608]
[1729501325421,0.3608,68344.0,68340.0,0.073188]
[1729501325621,0.073187,68342.0,68340.0,0.073188]
[1729501325833,0.13323126,68341.0,68340.0,0.073188]
[1729501326531,0.08075222,68341.0,68340.0,0.073188]
[1729501327328,0.2343,68343.0,68340.0,0.07301585]
[1729501327523,0.2343,68343.0,68342.0,0.073187]
[1729501328430,0.2353,68343.0,68342.0,0.073187]
[1729501329137,0.2343,68343.0,68342.0,0.073187]
[1729501329337,0.2353,68343.0,68342.0,0.077187]
[1729501329935,0.2363,68343.0,68342.0,0.078187]
[1729501330636,0.309485,68343.0,68342.0,0.078187]
[1729501330822,0.308485,68343.0,68342.0,0.001]
[1729501331025,0.309485,68343.0,68342.0,0.005]
[1729501331227,0.308485,68343.0,68342.0,0.004]
[1729501331426,0.309485,68343.0,68342.0,0.005]
[1729501331822,0.308485,68343.0,68342.0,0.078187]
[1729501332027,0.2353,68343.0,68342.0,0.078187]
[1729501333237,0.2343,68343.0,68342.0,0.078187]
[1729501333734,0.2353,68343.0,68342.0,0.077187]
[1729501333935,0.2363,68343.0,68342.0,0.078187]
[1729501334336,0.2353,68343.0,68342.0,0.074187]
[1729501334532,0.2363,68343.0,68342.0,0.078187]
[1729501335243,0.5971,68343.0,68342.0,0.078187]
[1729501336036,0.670285,68343.0,68342.0,0.005]
[1729501336842,0.670285,68343.0,68323.0,0.46784]
[1729501336843,0.073197,68332.0,68329.0,0.0732]
[1729501337030,0.073197,68332.0,68323.0,0.36156]
[1729501337230,0.073195,68334.0,68330.0,0.073199]
[1729501338042,0.001,68332.0,68330.0,0.073199]
[1729501338237,0.002,68332.0,68330.0,0.073199]
[1729501338748,0.074197,68332.0,68331.0,0.073198]
[1729501339646,0.074197,68332.0,68330.0,0.004]
[1729501339851,0.073197,68332.0,68330.0,0.004]
[1729501340340,0.074197,68332.0,68328.0,0.073201]
[1729501340545,0.075197,68332.0,68328.0,0.073201]
[1729501340747,0.073199,68330.0,68328.0,0.073201]
[1729501341743,0.002,68332.0,68330.0,0.073199]
[1729501342340,0.002,68332.0,68330.0,0.14621485]
[1729501342541,0.002,68332.0,68330.0,0.07301585]
[1729501342741,0.002,68332.0,68331.0,0.073198]
[1729501343351,0.001,68332.0,68331.0,0.073198]
[1729501343549,0.002,68332.0,68331.0,0.073198]
[1729501343946,0.3608,68335.0,68330.0,0.07301585]
[1729501344147,0.001,68332.0,68331.0,0.29200758]
[1729501344650,0.001,68332.0,68331.0,0.40840758]
[1729501344846,0.002,68332.0,68331.0,0.40840758]
[1729501345042,0.002,68332.0,68331.0,0.58573718]
[1729501345448,0.07187329,68332.0,68331.0,0.39632133]
[1729501345649,0.07187329,68332.0,68331.0,0.46920222]
[1729501346257,0.07187329,68332.0,68331.0,0.46922138]
[1729501346757,0.07187329,68332.0,68331.0,0.46914299]
[1729501347050,0.07187329,68332.0,68331.0,0.36490763]
[1729501347254,0.07287329,68332.0,68331.0,0.3962493]
[1729501349458,0.07287329,68332.0,68331.0,0.29200758]
[1729501350758,0.001,68332.0,68331.0,0.29200758]
[1729501352559,0.073201,68329.0,68328.0,0.073201]
[1729501352751,0.001,68332.0,68325.0,0.13667059]
[1729501352954,0.073204,68326.0,68325.0,0.02227059]
[1729501353159,0.3608,68327.0,68322.0,0.105]
[1729501353561,0.073207,68323.0,68322.0,0.02222926]
[1729501353754,0.073207,68323.0,68321.0,0.073209]
[1729501353950,0.073207,68323.0,68322.0,0.21852633]
[1729501354252,0.073208,68322.0,68321.0,0.02257983]
[1729501354459,0.073208,68322.0,68318.0,0.073212]
[1729501354647,0.073209,68321.0,68318.0,0.073212]
[1729501354851,0.3608,68320.0,68315.0,0.3608]
[1729501355154,0.3608,68320.0,68308.0,0.00088]
[1729501355155,0.073211,68319.0,68308.0,0.434022]
[1729501355354,0.073218,68314.0,68308.0,0.434022]
[1729501355558,0.073218,68314.0,68309.0,0.29190382]
[1729501357154,0.075218,68314.0,68309.0,0.29390382]
[1729501357345,0.075218,68314.0,68310.0,0.23023103]
[1729501357550,0.075218,68314.0,68311.0,0.10503424]
[1729501357752,0.075218,68314.0,68312.0,0.10503424]
[1729501357954,0.075218,68314.0,68313.0,0.10503424]
[1729501358450,0.075218,68314.0,68313.0,0.19266092]
[1729501359257,0.075218,68314.0,68313.0,0.10503424]
[1729501359457,0.075218,68314.0,68313.0,0.19265491]
[1729501360155,0.435018,68314.0,68313.0,0.19265491]
[1729501360360,0.435018,68314.0,68313.0,0.10603424]
[1729501360557,0.3628,68314.0,68313.0,0.18025224]
[1729501360761,0.3628,68314.0,68313.0,0.48778619]
[1729501361572,0.3628,68314.0,68313.0,0.40016552]
[1729501361773,0.3628,68314.0,68313.0,0.26787291]
[1729501361977,0.3628,68314.0,68313.0,0.2671303]
[1729501362473,0.3628,68314.0,68313.0,0.10629163]
[1729501362772,0.436017,68314.0,68313.0,0.10629163]
[1729501364374,0.436017,68314.0,68313.0,0.0750037]
[1729501365363,0.075217,68314.0,68313.0,0.17930309]
[1729501366179,0.675217,68314.0,68313.0,0.10529936]
[1729501366477,0.675217,68314.0,68308.0,0.02204329]
[1729501366478,0.073222,68309.0,68308.0,0.02204329]
[1729501366781,0.434022,68309.0,68308.0,0.05840667]
[1729501367481,0.3608,68309.0,68306.0,0.05840667]
[1729501367683,0.073224,68307.0,68306.0,0.05840667]
[1729501367888,0.3628,68309.0,68305.0,0.05840667]
[1729501368068,0.073225,68306.0,68305.0,0.05840667]
[1729501368268,0.073225,68306.0,68296.0,0.38325291]
[1729501368269,0.073235,68297.0,68296.0,0.02245291]
[1729501368584,0.073235,68297.0,68288.0,0.073244]
[1729501368585,0.3608,68297.0,68288.0,0.073244]
[1729501368877,0.3608,68297.0,68283.0,0.36156]
[1729501368878,0.434041,68291.0,68283.0,0.36156]
[1729501369074,0.434041,68291.0,68287.0,0.073245]
[1729501369271,0.073242,68290.0,68285.0,0.21872323]
[1729501369477,0.073242,68290.0,68284.0,0.21872323]
[1729501369478,0.1189,68290.0,68283.0,0.42698561]
[1729501369678,0.1189,68290.0,68283.0,0.42614561]
[1729501369979,0.1189,68290.0,68284.0,0.21855967]
[1729501370178,0.1189,68290.0,68283.0,0.02209561]
[1729501370371,0.3618,68291.0,68282.0,0.2294]
[1729501370684,0.3618,68291.0,68283.0,0.21941601]
[1729501370984,0.001,68290.0,68283.0,0.21941601]
[1729501371182,0.001,68290.0,68287.0,0.073245]
[1729501371872,0.001,68290.0,68282.0,0.02187162]
[1729501372073,0.001,68290.0,68283.0,0.073249]
[1729501372275,0.435842,68291.0,68283.0,0.21897715]
[1729501372468,0.3628,68291.0,68286.0,0.073246]
[1729501372673,0.3628,68291.0,68287.0,0.073244]
[1729501372875,0.3628,68291.0,68288.0,0.073244]
[1729501373073,0.001,68290.0,68289.0,0.073243]
[1729501373372,0.002,68290.0,68289.0,0.29248893]
[1729501373581,0.002,68290.0,68289.0,0.40308893]
[1729501374482,0.3608,68297.0,68289.0,0.32984593]
[1729501374682,0.001,68291.0,68290.0,0.073242]
[1729501375078,0.001,68291.0,68290.0,0.2925158]
[1729501375385,0.3608,68297.0,68294.0,0.073238]
[1729501376183,0.30949953,68297.0,68294.0,0.073238]
[1729501376388,0.073217,68314.0,68289.0,0.19922067]
[1729501376389,0.073225,68307.0,68296.0,0.3608]
[1729501376884,0.073225,68307.0,68302.0,0.073229]
[1729501377479,0.3608,68310.0,68302.0,0.073229]
[1729501377790,0.001,68307.0,68306.0,0.073225]
[1729501378084,0.001,68307.0,68306.0,0.29201612]
[1729501378977,0.001,68310.0,68308.0,0.073223]
[1729501379277,0.073215,68316.0,68309.0,0.21815465]
[1729501379679,0.073215,68316.0,68309.0,0.29137665]
[1729501379974,0.3608,68322.0,68312.0,0.073218]
[1729501379975,0.073211,68319.0,68312.0,0.073218]
[1729501380175,0.073211,68319.0,68313.0,0.073217]
[1729501380374,0.3608,68322.0,68313.0,0.073217]
[1729501380577,0.434008,68322.0,68306.0,0.004]
[1729501380779,0.434008,68322.0,68314.0,0.2200484]
[1729501380780,0.3608,68322.0,68314.0,0.2200484]
[1729501380981,0.3608,68322.0,68320.0,0.07321]
[1729501381301,0.3608,68322.0,68315.0,0.2200484]
[1729501381475,0.3608,68322.0,68321.0,0.073209]
[1729501382084,0.618468,68360.0,68321.0,0.073209]
[1729501382085,0.3608,68337.0,68321.0,0.7599764]
[1729501382281,0.3608,68340.0,68339.0,0.07319]
[1729501382783,0.3608,68351.0,68338.0,0.3608]
[1729501382984,0.073181,68347.0,68346.0,0.04371105]
[1729501383376,0.073181,68347.0,68338.0,0.3608]
[1729501383377,0.3608,68351.0,68345.0,0.04371105]
[1729501383692,0.3608,68351.0,68350.0,0.073178]
[1729501384079,0.3608,68363.0,68350.0,0.58066693]
[1729501384279,0.3608,68363.0,68359.0,0.073168]
[1729501384481,0.3608,68363.0,68350.0,0.58066693]
[1729501384688,0.3608,68363.0,68360.0,0.22016971]
[1729501384875,0.3608,68363.0,68361.0,0.073165]
[1729501385289,0.3688,68363.0,68361.0,0.22016971]
[1729501385489,0.008,68363.0,68362.0,0.073165]
[1729501385693,0.008,68363.0,68362.0,0.29253779]
[1729501385886,0.3608,68370.0,68363.0,0.073164]
[1729501386081,0.3608,68370.0,68367.0,0.04362302]
[1729501386391,0.3608,68370.0,68364.0,0.26299581]
[1729501386594,0.3608,68370.0,68364.0,0.04362302]
[1729501386783,0.3608,68370.0,68365.0,0.05701351]
[1729501386784,0.13321883,68369.0,68365.0,0.05701351]
[1729501387088,0.08074097,68368.0,68364.0,0.073163]
[1729501387294,0.08074097,68367.0,68364.0,0.073163]
[1729501387586,0.05247786,68369.0,68365.0,0.21807908]
[1729501387887,0.08074103,68368.0,68365.0,0.21807908]
[1729501388088,0.08074103,68367.0,68365.0,0.21807908]
[1729501388289,0.08074103,68366.0,68365.0,0.21807908]
[1729501390292,0.08074103,68366.0,68362.0,0.073165]
[1729501390591,0.08074103,68365.0,68363.0,0.21912993]
[1729501390794,0.08074103,68364.0,68363.0,0.21912993]
[1729501390990,0.15390403,68364.0,68358.0,0.073169]
[1729501391188,0.15390603,68363.0,68358.0,0.10236]
[1729501391386,0.08074103,68362.0,68358.0,0.21912993]
[1729501391585,0.08074103,68361.0,68357.0,0.01782085]
[1729501391785,0.03583025,68360.0,68352.0,0.10236]
[1729501391986,0.3608,68354.0,68348.0,0.073179]
[1729501392294,0.3608,68354.0,68343.0,0.3608]
[1729501392295,0.073176,68352.0,68349.0,0.21959476]
[1729501392589,0.073176,68352.0,68347.0,0.21959476]
[1729501392590,0.08074103,68351.0,68348.0,0.01781665]
[1729501392784,0.08074103,68350.0,68346.0,0.2180604]
[1729501392985,0.073183,68345.0,68343.0,0.3608]
[1729501393183,0.08074103,68344.0,68343.0,0.3608]
[1729501393390,0.08076449,68344.0,68343.0,0.37888032]
[1729501394303,0.15816013,68344.0,68343.0,0.01908032]
[1729501394590,0.67290862,68344.0,68343.0,0.01908032]
[1729501394788,0.433984,68344.0,68343.0,0.02108032]
[1729501395399,0.433984,68344.0,68343.0,0.02208032]
[1729501395400,0.434984,68344.0,68343.0,0.02208032]
[1729501395594,0.435984,68344.0,68343.0,0.02208032]
[1729501395989,0.434984,68344.0,68343.0,0.01908032]
[1729501396182,0.435984,68344.0,68343.0,0.02208032]
[1729501396497,0.3618,68344.0,68343.0,0.02208032]
[1729501396894,0.3618,68344.0,68343.0,0.31442232]
[1729501397095,0.3618,68344.0,68343.0,0.31342232]
[1729501397294,0.3628,68344.0,68343.0,0.31442232]
[1729501397494,0.002,68344.0,68343.0,0.31442232]
[1729501398198,0.002,68344.0,68343.0,0.31142232]
[1729501398494,0.002,68344.0,68343.0,0.31442232]
[1729501401897,0.3628,68344.0,68343.0,0.24123732]
[1729501402405,0.002,68344.0,68343.0,0.24123732]
[1729501402701,0.002,68344.0,68343.0,0.31442232]
[1729501403203,0.002,68344.0,68343.0,0.35789514]
[1729501403397,0.002,68344.0,68343.0,0.31442232]
[1729501403798,0.001,68344.0,68343.0,0.31342232]
[1729501403992,0.002,68344.0,68343.0,0.31442232]
[1729501404891,0.001,68344.0,68343.0,0.31142232]
[1729501405091,0.002,68344.0,68343.0,0.31442232]
[1729501405499,0.3608,68349.0,68343.0,0.24123732]
[1729501405909,0.3608,68349.0,68347.0,0.073181]
[1729501406206,0.30953939,68349.0,68348.0,0.22093302]
[1729501406698,0.31053939,68349.0,68348.0,0.22093302]
[1729501407602,0.31153939,68349.0,68348.0,0.22193302]
[1729501407800,0.31053939,68349.0,68348.0,0.29511302]
[1729501408108,0.36168,68357.0,68348.0,0.33492797]
[1729501408296,0.073172,68356.0,68353.0,0.07277554]
[1729501408501,0.3608,68357.0,68355.0,0.07277554]
[1729501408801,0.3608,68357.0,68356.0,0.21903048]
[1729501408998,0.3608,68357.0,68356.0,0.29180602]
[1729501409400,0.3608,68357.0,68356.0,0.10258571]
[1729501409401,0.3638,68357.0,68356.0,0.10258571]
[1729501409601,0.3638,68357.0,68356.0,0.32161619]
[1729501409805,0.39963491,68357.0,68356.0,0.29220248]
[1729501410199,0.39663491,68357.0,68356.0,0.29220248]
[1729501410396,0.40263491,68357.0,68356.0,0.29220248]
[1729501410892,0.03883491,68357.0,68356.0,0.29220248]
[1729501411093,0.006,68357.0,68356.0,0.29220248]
[1729501411507,0.07316,68368.0,68361.0,0.073165]
[1729501411705,0.04491287,68367.0,68363.0,0.073163]
[1729501411900,0.04491287,68366.0,68363.0,0.073163]
[1729501412100,0.04491287,68365.0,68364.0,0.22019533]
[1729501412305,0.3608,68370.0,68364.0,0.29335833]
[1729501412505,0.073158,68369.0,68364.0,0.073163]
[1729501412803,0.008,68367.0,68365.0,0.21806217]
[1729501413006,0.008,68367.0,68365.0,0.29122417]
[1729501413399,0.008,68367.0,68365.0,0.073162]
[1729501413595,0.008,68367.0,68366.0,0.21806217]
[1729501413905,0.008,68367.0,68364.0,0.29236736]
[1729501414102,0.008,68367.0,68366.0,0.21820536]
[1729501414497,0.016,68367.0,68365.0,0.21920536]
[1729501414697,0.073161,68366.0,68365.0,0.001]
[1729501415002,0.073159,68368.0,68365.0,0.22055231]
[1729501415310,0.008,68367.0,68364.0,0.002]
[1729501415703,0.073161,68366.0,68365.0,0.22155231]
[1729501416010,0.08816,68367.0,68365.0,0.29471431]
[1729501416203,0.08816,68367.0,68365.0,0.22155231]
[1729501416612,0.08816,68367.0,68365.0,0.22055231]
[1729501417796,0.08016,68367.0,68365.0,0.29371331]
[1729501418003,0.08816,68367.0,68365.0,0.29471331]
[1729501418210,0.016,68367.0,68366.0,0.073161]
[1729501418705,0.016,68367.0,68365.0,0.002]
[1729501418912,0.073161,68366.0,68365.0,0.002]
[1729501419302,0.073161,68366.0,68365.0,0.22127309]
[1729501419611,0.016,68367.0,68365.0,0.22027309]
[1729501420014,0.016,68367.0,68364.0,0.21988004]
[1729501420309,0.016,68367.0,68366.0,0.21988004]
[1729501420511,0.016,68367.0,68363.0,0.073163]
[1729501420512,0.016,68367.0,68365.0,0.21988004]
[1729501420703,0.016,68367.0,68366.0,0.21952567]
[1729501420903,0.016,68367.0,68365.0,0.073161]
[1729501421102,0.016,68367.0,68365.0,0.29268667]
[1729501421305,0.008,68367.0,68365.0,0.29268667]
[1729501421508,0.008,68366.0,68365.0,0.074161]
[1729501421711,0.016,68366.0,68365.0,0.075161]
[1729501422008,0.016,68366.0,68365.0,0.29389352]
[1729501422206,0.008,68367.0,68365.0,0.29289352]
[1729501422411,0.016,68367.0,68365.0,0.22073252]
[1729501423103,0.008,68367.0,68365.0,0.21973252]
[1729501423302,0.008,68366.0,68365.0,0.22073252]
[1729501423608,0.008,68366.0,68365.0,0.29389452]
[1729501423907,0.008,68366.0,68365.0,0.29289452]
[1729501424107,0.008,68366.0,68365.0,0.29389452]
[1729501424108,0.016,68366.0,68365.0,0.29389452]
[1729501424812,0.008,68366.0,68365.0,0.29389452]
[1729501425309,0.04382909,68366.0,68365.0,0.29289452]
[1729501425506,0.05182909,68366.0,68365.0,0.29389452]
[1729501426806,0.05182899,68366.0,68365.0,0.29389452]
[1729501428615,0.09673606,68366.0,68365.0,0.29389452]
[1729501428911,0.06352899,68366.0,68365.0,0.29389452]
[1729501430105,0.115,68373.0,68365.0,0.29389452]
[1729501430304,0.1109,68383.0,68374.0,0.073152]
[1729501430509,0.073148,68378.0,68374.0,0.073152]
[1729501430810,0.04490514,68380.0,68369.0,0.3608]
[1729501430811,0.04490514,68377.0,68376.0,0.04593114]
[1729501431012,0.04490514,68377.0,68375.0,0.21876688]
[1729501431206,0.04490514,68376.0,68373.0,0.073153]
[1729501431411,0.04490514,68375.0,68374.0,0.21867555]
[1729501431715,0.11805558,68375.0,68374.0,0.001]
[1729501432013,0.445651,68375.0,68374.0,0.22073378]
[1729501432201,0.445651,68375.0,68374.0,0.21973378]
[1729501432599,0.445651,68375.0,68374.0,0.23739201]
[1729501432804,0.453651,68375.0,68374.0,0.23839201]
[1729501434213,0.099851,68375.0,68374.0,0.23939201]
[1729501434412,0.136411,68375.0,68374.0,0.23939201]
[1729501436515,0.497211,68375.0,68374.0,0.01965823]
[1729501440115,0.6304218,68375.0,68374.0,0.01965823]
[1729501440413,0.73764041,68375.0,68374.0,0.01965823]
[1729501440717,0.57794737,68375.0,68374.0,0.01965823]
[1729501440923,0.073165,68362.0,68361.0,0.3608]
[1729501441120,0.44153637,68362.0,68361.0,0.01822367]
[1729501441311,0.44153637,68362.0,68354.0,0.0008]
[1729501441312,0.49401849,68362.0,68354.0,0.0008]
[1729501441614,0.433973,68355.0,68354.0,0.0008]
[1729501441815,0.44153637,68355.0,68354.0,0.09129007]
[1729501442021,0.44153637,68355.0,68354.0,0.29212]
[1729501443116,0.44153637,68355.0,68354.0,0.218946]
[1729501443519,0.44153637,68355.0,68353.0,0.01803243]
[1729501443817,0.44153637,68355.0,68352.0,0.21955939]
[1729501443818,0.08073637,68354.0,68351.0,0.073177]
[1729501444318,0.15391037,68354.0,68353.0,0.22017147]
[1729501444516,0.08075203,68354.0,68352.0,0.22017147]
[1729501444720,0.3608,68355.0,68352.0,0.073176]
[1729501444721,0.08075203,68353.0,68352.0,0.073176]
[1729501444916,0.08075203,68353.0,68351.0,0.01831043]
[1729501445119,0.08075203,68352.0,68347.0,0.10468]
[1729501445421,0.08075203,68351.0,68349.0,0.22087108]
[1729501445723,0.08075203,68350.0,68347.0,0.12252769]
[1729501445919,0.08075203,68349.0,68348.0,0.07318]
[1729501446216,0.073176,68352.0,68351.0,0.006]
[1729501446418,0.15393421,68352.0,68351.0,0.006]
[1729501446617,0.15393421,68352.0,68351.0,0.22499238]
[1729501447013,0.073176,68352.0,68351.0,0.32873735]
[1729501447612,0.074176,68352.0,68351.0,0.32973735]
[1729501448423,0.075176,68352.0,68351.0,0.33673735]
[1729501448922,0.002,68352.0,68351.0,0.33673735]
[1729501449112,0.03857,68352.0,68351.0,0.33673735]
[1729501449316,0.03857,68352.0,68351.0,0.40991435]
[1729501451809,0.03857,68352.0,68351.0,0.33673735]
[1729501454131,0.03857,68352.0,68351.0,0.3365029]
[1729501454922,0.03857,68352.0,68351.0,0.4094239]
[1729501455122,0.03857,68352.0,68351.0,0.23299238]
[1729501455923,0.03857,68352.0,68351.0,0.30616938]
[1729501458831,0.05027,68352.0,68351.0,0.30616938]
[1729501462024,0.3608,68355.0,68352.0,0.073175]
[1729501462223,0.3608,68355.0,68354.0,0.07293717]
[1729501462420,0.3608,68355.0,68354.0,0.17640196]
[1729501462625,0.3608,68355.0,68354.0,0.10345605]
[1729501462626,0.433973,68355.0,68354.0,0.10345605]
[1729501462826,0.433973,68355.0,68354.0,0.17640688]
[1729501463034,0.433973,68355.0,68354.0,0.07295083]
[1729501463427,0.433973,68355.0,68354.0,0.10313814]
[1729501463624,0.433973,68355.0,68354.0,0.17610619]
[1729501463822,0.482243,68355.0,68354.0,0.17610619]
[1729501464027,0.482243,68355.0,68354.0,0.07296805]
[1729501464229,0.482243,68355.0,68354.0,0.08096805]
[1729501464427,0.482243,68355.0,68354.0,0.18420078]
[1729501464926,0.482243,68355.0,68354.0,0.08096805]
[1729501465432,0.482243,68355.0,68354.0,0.10305211]
[1729501465734,0.482243,68355.0,68354.0,0.20637777]
[1729501466536,0.482243,68355.0,68354.0,0.13340972]
[1729501468627,0.482243,68355.0,68354.0,0.13356433]
[1729501470535,0.482243,68355.0,68354.0,0.25678749]
[1729501471530,0.482243,68355.0,68354.0,0.13356433]
[1729501471730,0.482243,68355.0,68354.0,0.25686006]
[1729501471939,0.482243,68355.0,68354.0,0.25686503]
[1729501472143,0.482243,68355.0,68354.0,0.13356433]
[1729501477144,0.5180813,68355.0,68354.0,0.03008406]
[1729501478750,0.0841083,68355.0,68354.0,0.10325806]
[1729501479953,0.121443,68355.0,68354.0,0.03008406]
[1729501481357,0.121443,68355.0,68354.0,0.10325806]
[1729501482843,0.04827,68355.0,68354.0,0.10325806]
[1729501483357,0.121443,68355.0,68354.0,0.10325806]
[1729501483954,0.15727925,68355.0,68354.0,0.10325806]
[1729501484256,0.15727925,68355.0,68354.0,0.03008406]
[1729501485046,0.121443,68355.0,68354.0,0.25659573]
[1729501487052,0.3608,68361.0,68354.0,0.55005801]
[1729501487254,0.073157,68370.0,68360.0,0.3608]
[1729501487558,0.073159,68368.0,68361.0,0.44679995]
[1729501487750,0.073159,68368.0,68366.0,0.07316]
[1729501487947,0.073159,68368.0,68367.0,0.10333742]
[1729501488147,0.073159,68368.0,68367.0,0.32131401]
[1729501488347,0.073159,68368.0,68367.0,0.40906855]
[1729501488557,0.073159,68368.0,68367.0,0.32131401]
[1729501488752,0.007,68370.0,68369.0,0.073158]
[1729501488954,0.007,68370.0,68369.0,0.15536542]
[1729501489148,0.007,68370.0,68369.0,0.37476562]
[1729501490757,0.0257,68370.0,68369.0,0.37576562]
[1729501491159,0.0187,68370.0,68369.0,0.37576562]
[1729501491551,0.0127,68370.0,68369.0,0.38276562]
[1729501491752,0.0137,68370.0,68369.0,0.39076562]
[1729501492159,0.0137,68370.0,68369.0,0.2874282]
[1729501495855,0.0137,68370.0,68369.0,0.30977187]
[1729501499861,0.03582587,68370.0,68369.0,0.25774387]
[1729501500076,0.03582587,68370.0,68369.0,0.33090187]
[1729501500363,0.04490532,68374.0,68372.0,0.073154]
[1729501500673,0.03582588,68373.0,68372.0,0.073154]
[1729501500965,0.03582588,68373.0,68372.0,0.29209957]
[1729501501667,0.04752588,68373.0,68372.0,0.29609957]
[1729501501969,0.04752587,68373.0,68372.0,0.29609957]
[1729501502653,0.15968851,68383.0,68372.0,0.29609957]
[1729501502853,0.2376,68393.0,68375.0,0.3608]
[1729501502854,0.15968851,68386.0,68375.0,0.3608]
[1729501503157,0.073139,68386.0,68376.0,0.21962346]
[1729501503566,0.073139,68386.0,68381.0,0.073144]
[1729501503754,0.15968851,68388.0,68376.0,0.21962346]
[1729501503960,0.15968851,68388.0,68384.0,0.073142]
[1729501504163,0.007,68386.0,68384.0,0.073142]
[1729501504363,0.007,68386.0,68385.0,0.21875513]
[1729501504658,0.014,68386.0,68385.0,0.21875513]
[1729501505067,0.014,68386.0,68384.0,0.073141]
[1729501505257,0.014,68386.0,68385.0,0.21963128]
[1729501505567,0.014,68386.0,68385.0,0.29277228]
[1729501505762,0.014,68386.0,68385.0,0.30022308]
[1729501505961,0.014,68386.0,68385.0,0.0805918]
[1729501506163,0.014,68386.0,68385.0,0.30032905]
[1729501506568,0.014,68386.0,68385.0,0.18527783]
[1729501506569,0.007,68386.0,68385.0,0.18527783]
[1729501506778,0.17307622,68386.0,68385.0,0.25841883]
[1729501507068,0.014,68386.0,68385.0,0.25841883]
[1729501507259,0.014,68386.0,68385.0,0.26564786]
[1729501507666,0.014,68386.0,68385.0,0.26664786]
[1729501507972,0.087139,68386.0,68385.0,0.18627783]
[1729501508476,0.014,68386.0,68385.0,0.18627783]
[1729501508776,0.087139,68386.0,68385.0,0.18627783]
[1729501509260,0.014,68386.0,68385.0,0.25941883]